[Event "7th Sharjah Challengers 2024"]
[Site "Sharjah"]
[Date "2024.05.22"]
[Round "9.6"]
[White "Abdulrahim, Salem"]
[Black "Ahmad, Al Khatib"]
[Result "0-1"]
[ECO "B91"]
[WhiteElo "1824"]
[BlackElo "2380"]
[Annotator "TA"]
[PlyCount "80"]
[EventDate "2024.05.13"]
[EventType "swiss"]
[EventCountry "UAE"]
[SourceTitle "playchess.com"]
[Source "ChessBase"]
[SourceQuality "1"]
[TimeControl "5400+30"]

{[%evp 19,79,11,18,14,13,4,9,14,18,0,0,2,11,3,21,20,3,25,12,18,89,88,68,-1,0,-43,0,-85,-51,-221,-222,-216,-217,-220,-203,-202,-102,-179,-178,-179,-166,-414,-292,-290,-277,-345,-363,-354,-354,-710,-655,-783,-765,-875,-860,-1734,-1906,-29993,-29994,-29998,-29999,-29999]} 1. e4 {[%emt 0:00:09]} c5 {[%emt 0:00:05]} 2. Nf3 {[%emt 0:00:05][%cal Bg1f3,Bf3d4,Bd4b3,Bb3d2,Bd2f1,Bf1e3][%mdl 32]} d6 {[%emt 0:00:05]} 3. d4 {[%emt 0:00:05]} cxd4 {[%emt 0:00:06]} 4. Nxd4 {[%emt 0:00:03]} Nf6 {[%emt 0:00:07]} 5. Nc3 {[%emt 0:00:06]} a6 {[%emt 0:00:05]} 6. g3 {[%emt 0:00:37]} e5 {[%emt 0:00:39]} 7. Nb3 {[%emt 0:00:06]} Be7 {[%emt 0:02:33][%cal Bf8e7,Be7d8,Bd8a5][%mdl 32]} 8. a4 {[%emt 0:00:19]} O-O {[%emt 0:01:39]} 9. Bg2 {[%emt 0:00:20]} Be6 {[%emt 0:01:24]} 10. O-O {[%emt 0:00:21]} Nbd7 {[%emt 0:01:00]} 11. Re1 {[%emt 0:00:26]} Qc7 {[%emt 0:06:55]} 12. Nd2 {[%emt 0:05:02]} Bd8 {[%emt 0:01:12]} 13. Nf1 {[%emt 0:01:06] The position is equal.} Qc5 {[%emt 0:00:15]} 14. Ne3 {[%emt 0:04:08]} Ba5 {[%emt 0:04:00]} 15. Bd2 {[%emt 0:04:13]} Rfc8 {[%emt 0:06:07]} 16. Ncd5 {[%emt 0:03:00]} Bxd5 {[%emt 0:10:36]} 17. exd5 {[%emt 0:00:38]} Bxd2 {[%emt 0:00:13]} 18. Qxd2 {[%emt 0:00:08]} g6 {[%emt 0:01:45]} 19. a5 {[%emt 0:05:49]} b5 {[%emt 0:07:59]} (19... Ne8 $11 {remains equal.}) 20. axb6 $16 {[%emt 0:02:58]} Nxb6 {[%emt 0:22:17]} 21. b3 {[%emt 0:26:55]} (21. Ra5 $14 Qd4 22. Qc1 (22. Qxd4 $2 exd4 23. Nf1 Rxc2 $19)) 21... a5 $11 {[%emt 0:01:44]} 22. c4 {[%emt 0:05:19][%cal Oe3f5]} a4 {[%emt 0:07:39]} 23. b4 {[%emt 0:00:47]} (23. Nf5 $11 {keeps the balance.} axb3 (23... gxf5 24. b4 $14) 24. Ne7+ Kg7 25. Nxc8 Nxc4 (25... Qxc8 26. Rxa8 Qxa8 27. Qb4 $16) (25... Rxc8 26. Qb2 $11) 26. Qd3 Rxa1 27. Rxa1) 23... Qd4 {[%emt 0:00:13]} 24. Qc2 {[%emt 0:14:07]} (24. Qxd4 $2 exd4 25. Nf1 Rxc4 $19) (24. Qe2 $1 $15) 24... Nxc4 $19 {[%emt 0:02:02]} 25. Rxa4 {[%emt 0:01:38]} Rxa4 {[%emt 0:10:53]} (25... Nxe3 26. fxe3 Qb6 (26... Rxc2 $2 27. Rxa8+ Kg7 28. exd4 $18) 27. Rxa8 Rxa8 28. h3) 26. Qxa4 {[%emt 0:00:13]} Nxe3 {[%emt 0:00:22]} 27. fxe3 {[%emt 0:00:21]} Qb6 {[%emt 0:00:40]} (27... Qb2 $19 28. Qa1 Qxb4) 28. Qb3 {[%emt 0:17:44] [#]} (28. Qa5 $17 Rb8 29. Qxb6 Rxb6 30. Rb1) 28... Rb8 $1 {[%emt 0:00:44]} 29. Rc1 {[%emt 0:03:15] [#]} Ng4 $1 $40 {[%emt 0:04:07][%mdl 128] White is in trouble.} (29... Qxb4 $2 30. Rc8+ Kg7 31. Rxb8 $18) 30. Rc6 $2 {[%emt 0:03:23]} (30. Re1) 30... Qxb4 {[%emt 0:00:22]} ({Weaker is} 30... Qxe3+ 31. Qxe3 Nxe3 32. Rxd6 $17) 31. Qxb4 {[%emt 0:01:11]} ({Don't play} 31. Rc8+ Kg7 32. Qxb4 Rxb4 $17) 31... Rxb4 {[%emt 0:00:06][%mdl 4096] Endgame. KRB-KRN} 32. Bf3 {[%emt 0:00:48]} Rb1+ {[%emt 0:00:14]} ({Much less strong is} 32... Nxe3 33. Rxd6 Kf8 34. Kf2 $19) 33. Kg2 {[%emt 0:00:01]} Nxe3+ {[%emt 0:00:31]} 34. Kh3 $2 {[%emt 0:01:05]} (34. Kf2 Nf5 35. Bg2 Rb2+ 36. Kg1) 34... Rf1 {[%emt 0:01:19]} 35. Be4 {[%emt 0:00:58]} f5 {[%emt 0:01:29]} 36. Bd3 {[%emt 0:00:33]} Rd1 {[%emt 0:01:57]} 37. Be2 {[%emt 0:00:19]} Rd2 {[%emt 0:00:11]} 38. Ba6 {[%emt 0:00:16]} Ng4 {[%emt 0:00:24][%csl Gg4][%cal Rd2h2] Black mates.} 39. Kh4 {[%emt 0:00:32]} Rxh2+ {[%emt 0:00:38]} 40. Kg5 {[%emt 0:00:06]} Rh5# {[%emt 0:00:04] Weighted Error Value: White=1.00/Black=0.18 (very precise) .  Loses game:     	White=1     	---        Mistake:       	White=5     	Black=2      Inaccurate:     	White=1     	Black=2      OK:         	White=3     	Black=11     Best:        	White=2     	Black=2      Strong:       	---       	Black=1} 0-1

[Event "7th Sharjah Challengers 2024"]
[Site "Sharjah"]
[Date "2024.05.22"]
[Round "9.7"]
[White "Suyarov, Mukhammadzokhid"]
[Black "Aradhya, Garg"]
[Result "0-1"]
[ECO "C88"]
[WhiteElo "2431"]
[BlackElo "2388"]
[Annotator "TA"]
[PlyCount "94"]
[EventDate "2024.05.13"]
[EventType "swiss"]
[EventCountry "UAE"]
[SourceTitle "playchess.com"]
[Source "ChessBase"]
[SourceQuality "1"]
[TimeControl "5400+30"]

{[%evp 16,94,18,26,25,30,27,0,9,13,34,13,19,10,54,-14,0,-398,-401,-446,-442,-780,-777,-921,-783,-893,-484,-484,-476,-468,-475,-473,-470,-744,-475,-493,-485,-524,-528,-589,-581,-632,-618,-987,-597,-598,-320,-346,-346,-346,-345,-350,-343,-375,-337,-339,-306,-436,-425,-720,-679,-725,-675,-645,-572,-583,-581,-585,-552,-571,-547,-613,-613,-573,-573,-688,-764,-945,-887,-780,-730]} 1. e4 {[%emt 0:00:28]} e5 {[%emt 0:00:01]} 2. Nf3 {[%emt 0:00:27]} Nc6 {[%emt 0:00:02]} 3. Bb5 {[%emt 0:00:32]} a6 {[%emt 0:00:04]} 4. Ba4 {[%emt 0:00:31]} Nf6 {[%emt 0:00:03]} 5. O-O {[%emt 0:00:30]} Be7 {[%emt 0:00:05]} 6. Re1 {[%emt 0:00:27]} b5 {[%emt 0:00:02]} 7. Bb3 {[%emt 0:00:35]} O-O {[%emt 0:00:03]} 8. h3 {[%emt 0:00:23]} Bb7 {[%emt 0:00:06]} 9. d3 {[%emt 0:00:18]} d5 {[%emt 0:00:05]} 10. exd5 {[%emt 0:00:39]} Nxd5 {[%emt 0:00:05]} 11. Nbd2 {[%emt 0:00:35]} Qd7 {[%emt 0:09:36] The position is equal.} 12. Nf1 {[%emt 0:05:30][%cal Oa2a4]} Rae8 {[%emt 0:00:18]} 13. Nxe5 {[%emt 0:04:53]} Nxe5 {[%emt 0:00:07]} 14. Rxe5 {[%emt 0:00:31]} c5 {[%emt 0:00:25]} 15. Ne3 {[%emt 0:14:03]} ({White should play} 15. Qg4 $14 Qd6 16. Rf5) 15... Nf6 {[%emt 0:05:05]} 16. Nf5 $2 {[%emt 0:07:43][%mdl 8192] [#] Black keeps a firm grip on the game.} (16. a4 $11) 16... Bd8 $1 $19 {[%emt 0:01:42]} 17. Rxc5 {[%emt 0:27:55]} Bb6 {[%emt 0:00:05]} 18. Qd2 {[%emt 0:00:30]} (18. Be3 $142 Bxc5 (18... Rxe3 $2 19. Nxe3 Bxc5 20. c3 $19) 19. Bxc5) 18... Bxc5 {[%emt 0:00:38]} 19. Qg5 {[%emt 0:00:13]} Re1+ {[%emt 0:01:43]} 20. Kh2 {[%emt 0:00:12]} Bd6+ {[%emt 0:01:24]} ({Not} 20... Bxf2 21. Qxg7#) 21. Nxd6 {[%emt 0:03:57]} Qxd6+ {[%emt 0:01:00]} 22. Bf4 {[%emt 0:00:05]} Qe7 {[%emt 0:00:07]} (22... Rxa1 $2 {loses.} 23. Bxd6 Re1 24. Bxf8 Kxf8 25. Qf4 $18) 23. Rxe1 {[%emt 0:00:03]} Qxe1 {[%emt 0:00:04]} 24. Qc5 {[%emt 0:00:02]} (24. Be3 $142) 24... Rc8 {[%emt 0:03:00]} 25. Qb6 {[%emt 0:01:00]} Qe7 {[%emt 0:00:15]} 26. Bg3 {[%emt 0:01:24]} Qd7 {[%emt 0:00:32]} 27. f3 {[%emt 0:00:14]} h5 {[%emt 0:01:34]} 28. c4 {[%emt 0:00:56]} Re8 {[%emt 0:00:42] Prevents Be5. aiming for ...Re2.} 29. d4 {[%emt 0:00:44]} Qc6 {[%emt 0:01:00]} 30. Qa5 {[%emt 0:00:47]} bxc4 {[%emt 0:02:06]} 31. Ba4 {[%emt 0:00:21]} Qd5 {[%emt 0:00:08]} 32. Qxd5 {[%emt 0:00:07]} Bxd5 {[%emt 0:00:05]} 33. Bxe8 {[%emt 0:00:02]} Nxe8 {[%emt 1:14:48]} 34. Kg1 {[%emt 0:00:18]} f6 {[%emt 0:00:00][%cal Oc4c3]} 35. Kf2 {[%emt 0:00:04]} Kf7 {[%emt 0:00:00][%cal Oc4c3]} 36. Bb8 {[%emt 0:00:24]} (36. Ke3 {might work better.}) 36... c3 {[%emt 0:00:00] Black is clearly winning.} 37. b3 {[%emt 0:01:19]} (37. bxc3 $142 Bxa2 38. Bf4) 37... c2 {[%emt 0:00:00]} 38. Bf4 {[%emt 0:00:06] [#]} Nc7 $1 {[%emt 0:00:00][%mdl 512]} 39. Ke2 {[%emt 0:00:11]} (39. Bd2 Bc6) 39... Ne6 {[%emt 0:00:00]} 40. Be3 {[%emt 0:00:05] [#]} Nxd4+ $1 {[%emt 0:00:00][%mdl 512]} 41. Kd2 {[%emt 0:00:04]} Nf5 {[%emt 0:00:00] White must now prevent ...Nxe3.} 42. Bf2 {[%emt 0:00:01]} g5 {[%emt 0:00:00]} 43. Kxc2 {[%emt 0:01:28]} Nh4 {[%emt 0:00:00]} 44. g3 {[%emt 0:00:39]} Nxf3 {[%emt 0:00:00]} 45. Kc3 {[%emt 0:00:02]} Be6 {[%emt 0:00:00]} 46. h4 {[%emt 0:00:02]} gxh4 {[%emt 0:00:00]} 47. gxh4 {[%emt 0:00:01]} Kg6 {[%emt 0:00:00] Weighted Error Value: White=0.98/Black=0.80.  Loses game:     	White=1     	---        Mistake:       	White=5     	---        Inaccurate:     	White=1     	Black=2      OK:         	White=14    	Black=10     Best:        	White=1     	Black=3      Strong:       	---       	Black=1} 0-1

[Event "7th Sharjah Challengers 2024"]
[Site "Sharjah"]
[Date "2024.05.22"]
[Round "9.8"]
[White "Liyanage, Ranindu Dilshan"]
[Black "Wang, Yanbin"]
[Result "0-1"]
[ECO "D00"]
[WhiteElo "2362"]
[BlackElo "2415"]
[Annotator "TA"]
[PlyCount "52"]
[EventDate "2024.05.13"]
[EventType "swiss"]
[EventCountry "UAE"]
[SourceTitle "playchess.com"]
[Source "ChessBase"]
[SourceQuality "1"]
[TimeControl "5400+30"]

{[%evp 14,52,0,6,29,-35,0,-5,0,16,27,-30,-10,-59,-12,-186,-175,-277,-306,-260,-262,-247,-12,-284,-270,-552,-531,-791,-309,-619,-321,-320,-324,-1349,-1336,-1437,-1572,-1560,-1529,-1908,-1849]} 1. d4 {[%emt 0:00:09]} Nf6 {[%emt 0:00:05]} 2. Nc3 {[%emt 0:00:09]} d5 {[%emt 0:00:06]} 3. Bf4 {[%emt 0:00:06]} a6 {[%emt 0:00:06]} 4. e3 {[%emt 0:00:19]} e6 {[%emt 0:00:06]} 5. g4 {[%emt 0:00:54]} h6 {[%emt 0:01:54]} 6. Qf3 {[%emt 0:05:26] D00: 1 d4 d5: Unusual lines.} b5 {[%emt 0:07:05]} 7. h4 {[%emt 0:06:03]} b4 {[%emt 0:00:42]} 8. Nce2 {[%emt 0:03:45]} c5 {[%emt 0:06:41]} 9. Ng3 {[%emt 0:06:08]} (9. g5 $11 Nfd7 10. Bh3) 9... Bb7 {[%emt 0:04:05]} 10. g5 {[%emt 0:06:05]} Ne4 {[%emt 0:01:38]} 11. gxh6 {[%emt 0:03:14]} gxh6 {[%emt 0:01:36]} 12. Nxe4 {[%emt 0:06:31]} (12. Bd3 $142 Nf6 13. O-O-O) 12... dxe4 $11 {[%emt 0:00:05]} 13. Qg3 {[%emt 0:02:23]} Nd7 $146 {[%emt 0:06:38]} (13... cxd4 $15 {is more appropriate.} 14. exd4 Nd7) ({Predecessor:} 13... Nc6 14. Bg2 Qd5 15. Ne2 cxd4 16. exd4 Ne7 17. Qb3 Rg8 18. Ng3 f5 19. Bf1 Rc8 {0-1 Meessen,R (2158)-Bischoff,K (2479) Wch Seniors 50 30th 2022 (2)}) 14. dxc5 $2 {[%emt 0:14:38]} (14. O-O-O $11) 14... Qf6 {[%emt 0:03:46]} 15. Rd1 {[%emt 0:07:48]} (15. O-O-O $142 Bg7 16. Rd4) 15... Qxb2 $19 {[%emt 0:01:18]} (15... Nxc5 $2 16. Be5 $18) (15... Bxc5 16. Bc4 $17) 16. Ne2 {[%emt 0:03:41]} Bxc5 {[%emt 0:04:32]} (16... Nxc5 17. Be5 Qxc2 18. Nd4 Qc3+ (18... Qxa2 19. Bxh8 Rc8 20. Be2 $18) 19. Rd2 Nd3+ 20. Bxd3 exd3 21. Rg1 $17) 17. Bh3 {[%emt 0:04:05]} Bd5 $2 {[%emt 0:13:34]} (17... Qxa2 18. Qg7 O-O-O 19. Qxf7 $11) (17... O-O-O $19 18. Bc7 Rdf8) 18. Rg1 $2 {[%emt 0:09:35][%mdl 8192]} (18. Rxd5 $1 $11 {and White is okay.} exd5 19. O-O) 18... Bc4 $19 {[%emt 0:05:16]} (18... Bxa2 19. Bxh6 Qxc2 (19... Rxh6 $2 20. Qc7 $18) 20. Qc7 $11) (18... Qxc2 19. Qg7 Rf8 20. Rxd5 (20. Qxh6 $2 b3 $19) 20... exd5 21. Qa1 $19) (18... Qxa2 19. Qg4 $19 (19. Qg7 $2 Ke7 $19)) 19. Bd6 $2 {[%emt 0:10:16]} (19. Qg7 {was forced.} Qxg7 (19... Qxa2 $2 20. Qxh8+ Nf8 21. Bxh6 $18) 20. Rxg7) 19... O-O-O $19 {[%emt 0:03:10]} (19... Qxa2 $2 20. Qg8+ Nf8 21. Qxh8 $18) (19... Qxc2 20. Bf1 O-O-O (20... Qxa2 $2 21. Qg8+ Nf8 22. Bxc5 $18) 21. Rc1 Qxa2 22. Nd4 $19) 20. Bf1 {[%emt 0:01:24]} Bb6 $2 {[%emt 0:02:39]} (20... Bxd6 21. Qxd6 Ne5 (21... Qxc2 22. f3 $11) 22. Qc5+ Kb7 23. Qe7+ Kb6 (23... Kc8 $2 24. f4 $19) 24. Rd6+ Nc6) 21. Qg7 $2 {[%emt 0:04:20]} (21. Nd4 Qc3+ (21... Bxa2 22. Bxa6#) (21... Qxa2 $2 22. Bxc4 Qxc4 23. Qf4 $19) 22. Rd2) 21... Qxg7 {[%emt 0:00:38]} (21... Qxa2 $2 22. Ra1 $18) (21... Qxc2 $2 22. Rc1 Qxa2 23. Nd4 $18 (23. Bxb4 $2 Rhg8 $19)) 22. Rxg7 {[%emt 0:00:06]} Ba5 {[%emt 0:01:11]} (22... Bxa2 $2 23. Nc1 Nc5 24. Bxc5 (24. Nxa2 Ba5 $18) 24... Rxd1+ 25. Kxd1 Bxc5 26. Nxa2 $18 (26. Bxa6+ Kd8 $18)) 23. Rd4 $2 {[%emt 0:03:44] [#]} ({Much worse is} 23. Rd2 Nb6 (23... Bxa2 24. Nd4 $16) 24. Kd1 (24. Rxf7 $2 Rxd6 25. Rxd6 b3+ 26. c3 b2 $19) 24... b3 (24... Bxa2 25. Rd4 $19) 25. axb3 Bxd2 26. Kxd2 Rxd6+ $19) (23. Nc3 Bxf1 24. Kxf1 bxc3 25. Rd4) 23... b3+ $1 $19 {[%emt 0:01:22]} ({Not} 23... Bxa2 24. Nc3 $11) 24. Kd1 {[%emt 0:00:50]} b2 {[%emt 0:00:21]} 25. Rxc4+ {[%emt 0:00:05]} Kb7 {[%emt 0:00:05]} 26. Nc3 {[%emt 0:00:52]} Bxc3 {[%emt 0:00:05]} 0-1

[Event "7th Sharjah Challengers 2024"]
[Site "Sharjah"]
[Date "2024.05.22"]
[Round "9.9"]
[White "Nofal, Mohamed"]
[Black "Alizada, Pasham"]
[Result "0-1"]
[ECO "E60"]
[WhiteElo "1962"]
[BlackElo "2008"]
[Annotator "NA RC"]
[PlyCount "108"]
[EventDate "2024.05.13"]
[EventType "swiss"]
[EventCountry "UAE"]
[SourceTitle "playchess.com"]
[Source "ChessBase"]
[SourceQuality "1"]
[TimeControl "5400+30"]

1. d4 {[%emt 0:00:03]} Nf6 {[%emt 0:00:04]} 2. c4 {[%emt 0:01:25]} g6 {[%emt 0:00:05]} 3. Nf3 {[%emt 0:00:04]} Bg7 {[%emt 0:00:02]} 4. e3 {[%emt 0:00:14]} O-O {[%emt 0:00:05]} 5. Be2 {[%emt 0:00:03]} d5 {[%emt 0:00:03]} 6. cxd5 {[%emt 0:00:06]} Nxd5 {[%emt 0:00:03]} 7. e4 {[%emt 0:00:30]} Nb6 {[%emt 0:01:06]} 8. O-O {[%emt 0:02:20]} c5 {[%emt 0:05:17]} 9. d5 {[%emt 0:17:39]} e6 {[%emt 0:04:39]} 10. dxe6 {[%emt 0:00:09]} Bxe6 {[%emt 0:01:31]} 11. Nc3 {[%emt 0:00:26]} Nc6 {[%emt 0:10:19]} 12. Qxd8 {[%emt 0:02:34]} Rfxd8 {[%emt 0:03:03]} 13. Bg5 {[%emt 0:06:24]} f6 {[%emt 0:05:40]} 14. Be3 {[%emt 0:04:24]} Nd4 {[%emt 0:00:25]} 15. Bxd4 {[%emt 0:02:41]} cxd4 {[%emt 0:00:01]} 16. Nb5 {[%emt 0:00:01]} d3 {[%emt 0:01:12]} 17. Bd1 {[%emt 0:00:10]} Rd7 {[%emt 0:02:24]} 18. Bb3 {[%emt 0:01:42]} Re8 {[%emt 0:07:32]} 19. Nbd4 {[%emt 0:09:37]} Bxb3 {[%emt 0:04:44]} 20. Nxb3 {[%emt 0:00:01]} Na4 {[%emt 0:00:11]} 21. Nfd2 {[%emt 0:01:23]} Nxb2 {[%emt 0:01:37]} 22. f4 {[%emt 0:04:52]} Na4 {[%emt 0:18:47]} 23. Rac1 {[%emt 0:00:24]} Bf8 {[%emt 0:00:22]} 24. Kf2 {[%emt 0:05:53]} Ba3 {[%emt 0:00:42]} 25. Rc4 {[%emt 0:01:07]} Nb2 {[%emt 0:00:13]} 26. Rc3 {[%emt 0:00:55]} Na4 {[%emt 0:00:16]} 27. Rc4 {[%emt 0:00:28]} Nb6 {[%emt 0:00:04]} 28. Rc3 {[%emt 0:00:41]} Bb4 {[%emt 0:00:38]} 29. Rcc1 {[%emt 0:00:16]} a5 {[%emt 0:00:13]} 30. Rfd1 {[%emt 0:01:36]} Na4 {[%emt 0:08:22]} 31. e5 {[%emt 0:08:10]} Ba3 {[%emt 0:01:35]} 32. Ne4 {[%emt 0:02:10]} Rf8 {[%emt 0:00:17]} 33. Nxf6+ {[%emt 0:02:11]} Rxf6 {[%emt 0:00:42]} 34. exf6 {[%emt 0:00:02]} Bxc1 {[%emt 0:00:07]} 35. Nxc1 {[%emt 0:00:59]} d2 {[%emt 0:00:07]} 36. Nb3 {[%emt 0:02:50]} Nc3 {[%emt 0:00:05]} 37. Rxd2 {[%emt 0:00:02]} Ne4+ {[%emt 0:00:04]} 38. Ke3 {[%emt 0:00:07]} Nxd2 {[%emt 0:00:05]} 39. Nxd2 {[%emt 0:00:02]} Kf7 {[%emt 0:01:28]} 40. Ne4 {[%emt 0:00:37]} h5 {[%emt 0:01:36]} 41. g3 {[%emt 0:08:06]} b5 {[%emt 0:05:13]} 42. h3 {[%emt 0:01:53]} b4 {[%emt 0:00:54]} 43. g4 {[%emt 0:00:03]} a4 {[%emt 0:00:05]} 44. g5 {[%emt 0:00:21]} b3 {[%emt 0:00:31]} 45. axb3 {[%emt 0:00:04]} a3 {[%emt 0:01:57]} 46. Nc3 {[%emt 0:00:34]} Rb7 {[%emt 0:00:08]} 47. Kd3 {[%emt 0:01:34]} Rxb3 {[%emt 0:00:04]} 48. Kc2 {[%emt 0:00:05]} Rb2+ {[%emt 0:01:21]} 49. Kc1 {[%emt 0:00:06]} Rf2 {[%emt 0:00:52]} 50. Kb1 {[%emt 0:00:35]} Rxf4 {[%emt 0:00:35]} 51. Ka2 {[%emt 0:00:12]} Rf3 {[%emt 0:00:12]} 52. Ne4 {[%emt 0:04:38]} Rxh3 {[%emt 0:00:11]} 53. Nd6+ {[%emt 0:00:03]} Kf8 {[%emt 0:00:06]} 54. Nc4 {[%emt 0:00:12]} Rg3 {[%emt 0:00:13]} 0-1

[Event "7th Sharjah Challengers 2024"]
[Site "Sharjah"]
[Date "2024.05.22"]
[Round "9.10"]
[White "Ammar, Sedrani"]
[Black "Harsh Suresh"]
[Result "0-1"]
[ECO "A64"]
[WhiteElo "2194"]
[BlackElo "2417"]
[Annotator "TA"]
[PlyCount "108"]
[EventDate "2024.05.13"]
[EventType "swiss"]
[EventCountry "UAE"]
[SourceTitle "playchess.com"]
[Source "ChessBase"]
[SourceQuality "1"]
[TimeControl "5400+30"]

{[%evp 23,108,0,0,0,3,-35,52,-19,78,90,74,-12,83,-25,72,47,63,42,56,34,40,39,53,37,39,21,26,2,30,14,15,24,12,30,76,73,89,29,30,23,30,41,39,27,56,0,0,-22,-13,-12,0,0,6,0,41,30,19,51,90,0,78,-8,-8,-8,-8,-861,-839,-1965,-1969,-1114,-1500,-2510,-1868,-6070,-5193,-29987,-29987,-29991,-29986,-29986,-29987,-29986,-29984,-29987,-29984,-29989,-29990]} 1. d4 {[%emt 0:04:23]} Nf6 {[%emt 0:00:22]} 2. c4 {[%emt 0:00:18]} c5 {[%emt 0:00:15]} 3. d5 {[%emt 0:02:35]} e6 {[%emt 0:00:12]} 4. g3 {[%emt 0:09:31]} d6 {[%emt 0:03:37]} 5. Bg2 {[%emt 0:00:31]} exd5 {[%emt 0:00:06]} 6. cxd5 {[%emt 0:00:07]} g6 {[%emt 0:01:37]} 7. Nc3 {[%emt 0:00:14]} Bg7 {[%emt 0:00:07]} 8. Nf3 {[%emt 0:00:41]} O-O {[%emt 0:00:35]} 9. O-O {[%emt 0:00:25]} Re8 {[%emt 0:00:33]} 10. Nd2 {[%emt 0:02:29]} Nbd7 {[%emt 0:15:35]} 11. h3 {[%emt 0:02:28]} a6 {[%emt 0:05:35]} 12. a4 {[%emt 0:03:23]} b6 {[%emt 0:00:47] A64: Modern Benoni: Fianchetto Variation: 9...Nbd7 10 Nd2 a6 11 a4 Re8.} 13. Nc4 {[%emt 0:04:01]} Ne5 {[%emt 0:03:46]} 14. Na3 {[%emt 0:01:11]} Rb8 {[%emt 0:00:28]} ({Better is} 14... Nh5 $1 $15) 15. Kh2 {[%emt 0:11:39]} ({White should try} 15. f4 $14 Ned7 16. Kh2) 15... Re7 $146 {[%emt 0:09:35]} (15... Bd7 $11 {remains equal.}) ({Predecessor:} 15... Qc7 16. f4 Ned7 17. e4 h5 18. Qd3 h4 19. g4 g5 20. fxg5 Ne5 21. Qe2 Nh7 {0-1 Ovchinnikov,V (2426)-Zhigalko,S (2572) Titled Tuesday intern op 22nd Aug Early blitz 2023 (3)}) 16. f4 {[%emt 0:05:57]} Ned7 {[%emt 0:00:27]} 17. Qd3 {[%emt 0:00:06]} (17. Qc2 $16) 17... Ne8 {[%emt 0:10:48]} (17... c4 $1 $11 18. Qd1 (18. Nxc4 Nc5 $11) (18. Qxc4 Bb7 $11) 18... Re8) 18. Bd2 {[%emt 0:00:30]} (18. e4 $16) 18... Nc7 {[%emt 0:08:11]} (18... f5 $11) 19. e4 {[%emt 0:03:49]} Re8 {[%emt 0:03:10]} 20. Rfe1 {[%emt 0:07:03]} Nf8 {[%emt 0:01:49]} 21. Bf1 {[%emt 0:02:32]} h5 {[%emt 0:02:29]} 22. Qf3 {[%emt 0:03:00]} h4 {[%emt 0:05:31]} 23. Bd3 {[%emt 0:00:52]} b5 {[%emt 0:08:36]} 24. axb5 {[%emt 0:00:22]} axb5 {[%emt 0:00:01]} 25. Naxb5 {[%emt 0:00:53]} Nxb5 {[%emt 0:00:25]} 26. Nxb5 {[%emt 0:00:59]} Qd7 {[%emt 0:01:41]} 27. Qf1 {[%emt 0:01:42]} hxg3+ {[%emt 0:00:33]} 28. Kxg3 {[%emt 0:01:53]} Bxb2 {[%emt 0:00:22]} (28... Qe7 $11) 29. Ra7 $16 {[%emt 0:01:08]} Rb7 {[%emt 0:04:07]} 30. Rxb7 {[%emt 0:00:32]} ({White should play} 30. Ra6 $16) 30... Bxb7 $11 {[%emt 0:00:01]} 31. Rb1 {[%emt 0:00:02]} Bg7 {[%emt 0:01:10]} 32. Nxd6 {[%emt 0:00:17]} Qxd6 {[%emt 0:00:08]} 33. Rxb7 {[%emt 0:00:07]} Nh7 {[%emt 0:07:15]} 34. Qb1 {[%emt 0:06:47]} (34. Bc2 $14 Nf6 35. Qc4) 34... Nf6 $11 {[%emt 0:02:56]} 35. Rb6 {[%emt 0:09:53]} Qd8 {[%emt 0:00:11]} 36. Qb5 {[%emt 0:00:43]} c4 {[%emt 0:01:42]} (36... Nxe4+ $2 37. Bxe4 Qa8 (37... Rxe4 $2 38. Rb8 $18) 38. Bf3 $18) 37. Bc2 {[%emt 0:00:18]} c3 {[%emt 0:00:37]} (37... Nxe4+ 38. Bxe4 c3 (38... Rxe4 $2 39. Rb8 $18) 39. Be3 (39. Rd6 $2 Qe7 $19) 39... Rxe4 40. Rb8 Rxe3+ 41. Kf2 $11) 38. Bc1 {[%emt 0:02:01]} Kh7 {[%emt 0:00:50]} 39. Kf3 {[%emt 0:14:38]} (39. e5 $5 Nh5+ $8 (39... Nxd5 $2 40. Rd6 $18) 40. Kf3 $16) 39... Qc8 {[%emt 0:00:27]} 40. Qf1 {[%emt 0:00:00]} Qd8 {[%emt 0:01:54]} 41. Rb5 {[%emt 0:00:00]} (41. Rb4 $1 $16) 41... Qd7 {[%emt 0:00:12] [#]} (41... Nxe4 $11 42. Bxe4 Qh4) 42. Be3 {[%emt 0:01:30]} (42. Ra5 $1 $16) 42... Ra8 $11 {[%emt 0:01:13]} 43. Bd3 {[%emt 0:00:00]} Ra2 {[%emt 0:00:40]} 44. Bc4 $2 {[%emt 0:00:00][%mdl 8192] [#]} (44. Rb6 $11) 44... Ra1 $1 $19 {[%emt 0:00:39]} ({Stronger than} 44... Rh2 45. Kg3 Rd2 (45... Nxe4+ $2 {loses.} 46. Kxh2 Nd6 47. Rc5 $18) 46. Bxd2 Nxe4+ 47. Kg2 cxd2 48. Bb3 $11) 45. Qxa1 {[%emt 0:00:00]} Qxh3+ {[%emt 0:00:02]} 46. Ke2 {[%emt 0:00:00]} Qg2+ {[%emt 0:00:28]} 47. Ke1 {[%emt 0:00:00]} Ng4 {[%emt 0:01:05]} 48. Qc1 {[%emt 0:00:00]} Qxe4 {[%emt 0:00:12]} 49. Bf1 {[%emt 0:02:36]} Nxe3 {[%emt 0:00:11]} ({Worse is} 49... Qxe3+ 50. Qxe3 Nxe3 51. Rc5 $16) 50. Kf2 {[%emt 0:00:27]} Qxf4+ {[%emt 0:00:23]} 51. Ke2 {[%emt 0:00:05]} Qg4+ {[%emt 0:00:44]} 52. Kd3 {[%emt 0:00:17]} Qd4+ {[%emt 0:00:54]} 53. Ke2 {[%emt 0:00:01]} c2 {[%emt 0:00:14]} 54. Qd2 {[%emt 0:01:25]} Qc4+ {[%emt 0:00:13]} 0-1